fUSD/lending_fUSD_20250618
["ID","MTS","AMOUNT","RATE_DAILY","PERIOD"]
[366397779,1750230656755,-490.0,0.00016602,2]
[366397780,1750230656764,-4677.88,0.00016602,2]
[366397781,1750230656775,-2236.66,0.00016602,2]
[366397782,1750230656784,-1902.98,0.00016602,2]
[366397783,1750230656794,-1846.4,0.00016602,2]
[366397784,1750230656803,-1215.76,0.00016602,2]
[366397785,1750230656813,-490.0,0.00016602,2]
[366397786,1750230656823,-490.0,0.00016602,2]
[366397787,1750230656832,-490.0,0.00016602,2]
[366397788,1750230656842,-490.0,0.00016602,2]
[366397789,1750230656853,-638.19,0.00016602,2]
[366397790,1750230656863,-490.0,0.00016602,2]
[366397792,1750230656872,-516.52,0.00016602,2]
[366397793,1750230656881,-151.0,0.00016602,2]
[366397794,1750230656891,-2303.24,0.00016602,2]
[366397795,1750230656901,-490.0,0.00016602,2]
[366397796,1750230656911,-239.915043,0.00016602,2]
[366397797,1750230656926,-1418.79,0.00016602,2]
[366397798,1750230656940,-1157.29,0.00016602,2]
[366397799,1750230656953,-3012.65,0.00016602,2]
[366397800,1750230656964,-490.0,0.00016602,2]
[366397801,1750230656977,-1012.45,0.00016602,2]
[366397802,1750230656991,-712.74,0.00016602,2]
[366397803,1750230657004,-749.22,0.00016602,2]
[366397804,1750230657018,-1341.46,0.00016602,2]
[366397805,1750230657032,-1103.85,0.00016602,2]
[366397806,1750230657046,-490.0,0.00016602,2]
[366397807,1750230657059,-490.0,0.00016602,2]
[366397808,1750230657071,-1879.83,0.00016602,2]
[366397809,1750230657082,-735.15,0.00016602,2]
[366397810,1750230657096,-490.0,0.00016602,2]
[366397811,1750230657110,-490.0,0.00016602,2]
[366397812,1750230657124,-569.32,0.00016602,2]
[366397813,1750230657137,-702.2,0.00016602,2]
[366397814,1750230657151,-3916.05,0.00016602,2]
[366397815,1750230657163,-709.77,0.00016602,2]
[366397816,1750230657176,-490.0,0.00016602,2]
[366397817,1750230657188,-3567.03,0.00016602,2]
[366397818,1750230657202,-1276.65,0.00016602,2]
[366397819,1750230657215,-490.0,0.00016602,2]
[366397820,1750230657227,-1233.66,0.00016602,2]
[366397821,1750230657241,-490.0,0.00016602,2]
[366397822,1750230657254,-1105.56,0.00016602,2]
[366397823,1750230657268,-7569.72,0.00016602,2]
[366397824,1750230657283,-490.0,0.00016602,2]
[366397825,1750230657298,-2098.21,0.00016602,2]
[366397826,1750230657311,-524.09,0.00016602,2]
[366397827,1750230657324,-740.47,0.00016602,2]
[366397828,1750230657335,-2309.41,0.00016602,2]
[366397829,1750230657347,-151.0,0.00016602,2]
[366397830,1750230657358,-490.0,0.00016602,2]
[366397831,1750230657375,-490.0,0.00016602,2]
[366397832,1750230657387,-1086.58,0.00016602,2]
[366397833,1750230657398,-805.76,0.00016602,2]
[366397834,1750230657409,-490.0,0.00016602,2]
[366397835,1750230657421,-3763.77,0.00016602,2]
[366397836,1750230657435,-461.12173743,0.00016602,2]
[366397837,1750230657447,-1384.45,0.00016602,2]
[366397838,1750230657459,-2631.94,0.00016602,2]
[366397839,1750230657469,-490.0,0.00016602,2]
[366397840,1750230657481,-554.44,0.00016602,2]
[366397841,1750230657493,-490.0,0.00016602,2]
[366397842,1750230657504,-19965.36,0.00016602,2]
[366397843,1750230657515,-657.75,0.00016602,2]
[366397844,1750230657527,-3463.32,0.00016602,2]
[366397845,1750230657538,-490.0,0.00016602,2]
[366397846,1750230657550,-843.56,0.00016602,2]
[366397847,1750230657562,-494.04793642,0.00016602,2]
[366397848,1750230657574,-151.0,0.00016602,2]
[366397849,1750230657585,-561.79,0.00016602,2]
[366397850,1750230657597,-151.0,0.00016602,2]
[366397851,1750230657608,-151.0,0.00016602,2]
[366397852,1750230657621,-490.0,0.00016602,2]
[366397853,1750230657632,-10406.07,0.00016602,2]
[366397854,1750230657644,-151.0,0.00016602,2]
[366397855,1750230657656,-660.59,0.00016602,2]
[366397856,1750230657667,-925.06,0.00016602,2]
[366397857,1750230657679,-1902.68,0.00016602,2]
[366397858,1750230657690,-490.0,0.00016602,2]
[366397859,1750230657701,-490.0,0.00016602,2]
[366397860,1750230657712,-7479.35,0.00016602,2]
[366397861,1750230657724,-490.0,0.00016602,2]
[366397862,1750230657735,-2248.02,0.00016602,2]
[366397863,1750230657746,-490.0,0.00016602,2]
[366397864,1750230657758,-490.0,0.00016602,2]
[366397865,1750230657769,-581.61,0.00016602,2]
[366397866,1750230657781,-919.87,0.00016602,2]
[366397867,1750230657792,-1128.09,0.00016602,2]
[366397868,1750230657803,-3882.34,0.00016602,2]
[366397869,1750230657815,-1404.82,0.00016602,2]
[366397870,1750230657826,-1327.68,0.00016602,2]
[366397871,1750230657838,-602.22,0.00016602,2]
[366397872,1750230657850,-602.72,0.00016602,2]
[366397873,1750230657863,-9110.37,0.00016602,2]
[366397874,1750230657875,-2317.83,0.00016602,2]
[366397875,1750230657886,-6914.81,0.00016602,2]
[366397876,1750230657898,-529.47,0.00016602,2]
[366397877,1750230657909,-4567.13,0.00016602,2]
[366397878,1750230657921,-1303.38,0.00016602,2]
[366397879,1750230657933,-490.0,0.00016602,2]
[366397880,1750230657944,-490.0,0.00016602,2]
[366397881,1750230657955,-5203.1,0.00016602,2]
[366397882,1750230657966,-1218.56,0.00016602,2]
[366397883,1750230657977,-605.97,0.00016602,2]
[366397884,1750230657989,-1013.5,0.00016602,2]
[366397885,1750230658002,-490.0,0.00016602,2]
[366397886,1750230658013,-490.0,0.00016602,2]
[366397887,1750230658024,-2306.62,0.00016602,2]
[366397888,1750230658035,-151.0,0.00016602,2]
[366397889,1750230658047,-1174.25,0.00016602,2]
[366397890,1750230658059,-490.0,0.00016602,2]
[366397891,1750230658071,-151.0,0.00016602,2]
[366397892,1750230658082,-151.0,0.00016602,2]
[366397893,1750230658093,-490.0,0.00016602,2]
[366397894,1750230658107,-1383.85,0.00016602,2]
[366397895,1750230658119,-151.0,0.00016602,2]
[366397896,1750230658130,-490.0,0.00016602,2]
[366397897,1750230658142,-1159.64,0.00016602,2]
[366397898,1750230658153,-6632.99,0.00016602,2]
[366397899,1750230658165,-1295.9,0.00016602,2]
[366397900,1750230658183,-490.0,0.00016602,2]
[366397901,1750230658194,-1926.61,0.00016602,2]
[366397902,1750230658206,-1243.9,0.00016602,2]
[366397903,1750230658217,-1505.88,0.00016602,2]
[366397904,1750230658228,-591.33,0.00016602,2]
[366397905,1750230658240,-490.0,0.00016602,2]
[366397906,1750230658251,-490.0,0.00016602,2]
[366397907,1750230658262,-555.89,0.00016602,2]
[366397908,1750230658273,-1767.83,0.00016602,2]
[366397909,1750230658284,-151.0,0.00016602,2]
[366397910,1750230658295,-3783.99,0.00016602,2]
[366397911,1750230658306,-860.34,0.00016602,2]
[366397912,1750230658318,-1141.79,0.00016602,2]
[366397913,1750230658329,-1568.07,0.00016602,2]
[366397914,1750230658341,-1763.69,0.00016602,2]
[366397915,1750230658352,-490.0,0.00016602,2]
[366397916,1750230658364,-644.26,0.00016602,2]
[366397917,1750230658375,-1328.11,0.00016602,2]
[366397918,1750230658387,-1697.96,0.00016602,2]
[366397919,1750230658398,-490.0,0.00016602,2]
[366397920,1750230658409,-490.0,0.00016602,2]
[366397921,1750230658421,-3401.94,0.00016602,2]
[366397922,1750230658433,-612.97,0.00016602,2]
[366397923,1750230658446,-23930.49,0.00016602,2]
[366397924,1750230658458,-2701.21,0.00016602,2]
[366397925,1750230658470,-767.96,0.00016602,2]
[366397926,1750230658481,-490.0,0.00016602,2]
[366397927,1750230658492,-490.0,0.00016602,2]
[366397928,1750230658504,-2182.46,0.00016602,2]
[366397929,1750230658516,-490.0,0.00016602,2]
[366397930,1750230658528,-1515.9,0.00016602,2]
[366397931,1750230658541,-1084.79,0.00016602,2]
[366397932,1750230658552,-1769.27,0.00016602,2]
[366397933,1750230658563,-863.78,0.00016602,2]
[366397934,1750230658575,-490.0,0.00016602,2]
[366397935,1750230658589,-500.0,0.00016602,2]
[366397936,1750230658601,-833.92080167,0.0001661,2]
[366397937,1750230658614,-500.0,0.0001663,2]
[366397938,1750230658625,-1056.7595708,0.0001663,2]
[366397939,1750230658637,-179.73286433,0.0001663,2]
[366397940,1750230658648,-168.0,0.00016647,2]
[366397941,1750230658660,-189.0,0.0001665,2]
[366397942,1750230658672,-150.0,0.00016656,2]
[366397943,1750230658683,-500.0,0.00016657,2]
[366397944,1750230658695,-1164.87,0.00016658,2]
[366397945,1750230658707,-1164.87,0.00016658,2]
[366397946,1750230658718,-151.0,0.00016662,2]
[366397947,1750230658729,-215.72756873,0.00016685,2]
[366397948,1750230658741,-150.0,0.00016694,2]
[366397949,1750230658752,-278.20681966,0.00016694,2]
[366397950,1750230658763,-500.0,0.00016699,2]
[366397951,1750230658776,-3722.45,0.00016699,2]
[366397952,1750230658787,-82594.8457403,0.000167,2]
[366397953,1750230658799,-1000.0,0.000167,2]
[366397954,1750230658810,-1056.7595708,0.00016703,2]
[366397955,1750230658822,-179.73286433,0.00016703,2]
[366397956,1750230658834,-187.0,0.00016712,2]
[366397957,1750230658846,-151.0,0.00016716,2]
[366397958,1750230658858,-1000.0,0.00016717,2]
[366397959,1750230658870,-168.74388333,0.0001674,2]
[366397960,1750230658881,-1608.0,0.0001676,2]
[366397961,1750230658892,-8343.63,0.00016766,2]
[366397962,1750230658904,-455.14447707,0.00016766,2]
[366397963,1750230658915,-2203.92,0.00016766,2]
[366397964,1750230658927,-2203.92,0.00016766,2]
[366397965,1750230658939,-2203.92,0.00016766,2]
[366397966,1750230658950,-500.0,0.00016766,2]
[366397967,1750230658961,-500.0,0.00016766,2]
[366397968,1750230658972,-500.0,0.00016766,2]
[366397969,1750230658983,-202.51168529,0.00016766,2]
[366397970,1750230658995,-3722.45,0.00016766,2]
[366397971,1750230659006,-3722.45,0.00016766,2]
[366397972,1750230659018,-3722.45,0.00016766,2]
[366397973,1750230659029,-3722.45,0.00016766,2]
[366397974,1750230659041,-300.0,0.00016766,2]
[366397975,1750230659053,-300.0,0.00016766,2]
[366397976,1750230659063,-300.0,0.00016766,2]
[366397977,1750230659075,-490.0,0.00016767,2]
[366397978,1750230659086,-490.0,0.00016767,2]
[366397979,1750230659098,-490.0,0.00016767,2]
[366397980,1750230659112,-490.0,0.00016767,2]
[366397981,1750230659123,-836.87,0.00016767,2]
[366397982,1750230659134,-490.0,0.00016767,2]
[366397983,1750230659145,-490.0,0.00016767,2]
[366397984,1750230659157,-1231.49,0.00016767,2]
[366397985,1750230659169,-525.5,0.00016767,2]
[366397986,1750230659181,-490.0,0.00016767,2]
[366397987,1750230659193,-490.0,0.00016767,2]
[366397988,1750230659204,-595.3,0.00016767,2]
[366397989,1750230659215,-701.12,0.00016767,2]
[366397990,1750230659227,-490.0,0.00016767,2]
[366397991,1750230659239,-490.0,0.00016767,2]
[366397992,1750230659251,-490.0,0.00016767,2]
[366397993,1750230659262,-578.89,0.00016767,2]
[366397994,1750230659273,-1212.01,0.00016767,2]
[366397995,1750230659284,-490.0,0.00016767,2]
[366397996,1750230659297,-816.96,0.00016767,2]
[366397997,1750230659308,-490.0,0.00016767,2]
[366397998,1750230659319,-490.0,0.00016767,2]
[366397999,1750230659330,-490.0,0.00016767,2]
[366398000,1750230659342,-1003.3,0.00016767,2]
[366398001,1750230659354,-700.34,0.00016767,2]
[366398002,1750230659367,-490.0,0.00016767,2]
[366398003,1750230659379,-494.48,0.00016767,2]
[366398004,1750230659391,-490.0,0.00016767,2]
[366398005,1750230659402,-490.0,0.00016767,2]
[366398006,1750230659414,-490.0,0.00016767,2]
[366398007,1750230659426,-524.12,0.00016767,2]
[366398008,1750230659437,-490.0,0.00016767,2]
[366398009,1750230659448,-490.0,0.00016767,2]
[366398010,1750230659460,-519.85,0.00016767,2]
[366398011,1750230659471,-490.0,0.00016767,2]
[366398012,1750230659482,-490.0,0.00016767,2]
[366398013,1750230659494,-490.0,0.00016767,2]
[366398014,1750230659505,-671.43,0.00016767,2]
[366398015,1750230659516,-490.0,0.00016767,2]
[366398016,1750230659528,-1386.7,0.00016767,2]
[366398017,1750230659540,-490.0,0.00016767,2]
[366398018,1750230659551,-490.0,0.00016767,2]
[366398019,1750230659563,-490.0,0.00016767,2]
[366398020,1750230659574,-490.0,0.00016767,2]
[366398021,1750230659585,-490.0,0.00016767,2]
[366398022,1750230659597,-490.0,0.00016767,2]
[366398023,1750230659608,-632.87,0.00016767,2]
[366398024,1750230659620,-490.0,0.00016767,2]
[366398025,1750230659631,-917.54,0.00016767,2]
[366398026,1750230659643,-490.0,0.00016767,2]
[366398027,1750230659654,-490.0,0.00016767,2]
[366398028,1750230659666,-490.0,0.00016767,2]
[366398029,1750230659684,-613.36,0.00016767,2]
[366398030,1750230659695,-490.0,0.00016767,2]
[366398031,1750230659707,-490.0,0.00016767,2]
[366398032,1750230659719,-490.0,0.00016767,2]
[366398033,1750230659732,-272.70687293,0.00016767,2]
[366398034,1750230659744,-490.0,0.00016767,2]
[366398035,1750230659756,-444.07384759,0.00016767,2]
[366398036,1750230659768,-490.0,0.00016767,2]
[366398037,1750230659780,-490.0,0.00016767,2]
[366398038,1750230659792,-490.0,0.00016767,2]
[366398039,1750230659803,-490.0,0.00016767,2]
[366398040,1750230659814,-490.0,0.00016767,2]
[366398041,1750230659827,-713.78,0.00016767,2]
[366398042,1750230659838,-490.0,0.00016767,2]
[366398043,1750230659851,-490.0,0.00016767,2]
[366398044,1750230659864,-519.23,0.00016767,2]
[366398045,1750230659875,-495.84,0.00016767,2]
[366398046,1750230659887,-151.0,0.00016767,2]
[366398047,1750230659899,-151.0,0.00016767,2]
[366398048,1750230659910,-490.0,0.00016767,2]
[366398049,1750230659922,-444.99662829,0.00016767,2]
[366398050,1750230659934,-490.0,0.00016767,2]
[366398051,1750230659946,-536.79625191,0.00016767,2]
[366398052,1750230659958,-829.31,0.00016767,2]
[366398053,1750230659971,-490.0,0.00016767,2]
[366398054,1750230659983,-490.0,0.00016767,2]
[366398055,1750230659995,-1500.65,0.00016767,2]
[366398056,1750230660007,-490.0,0.00016767,2]
[366398057,1750230660019,-852.7,0.00016767,2]
[366398058,1750230660031,-490.0,0.00016767,2]
[366398059,1750230660043,-490.0,0.00016767,2]
[366398060,1750230660056,-769.61,0.00016767,2]
[366398061,1750230660068,-490.0,0.00016767,2]
[366398062,1750230660080,-490.0,0.00016767,2]
[366398063,1750230660093,-1110.42,0.00016767,2]
[366398064,1750230660107,-490.0,0.00016767,2]
[366398065,1750230660121,-490.0,0.00016767,2]
[366398066,1750230660133,-467.89221608,0.00016767,2]
[366398067,1750230660145,-490.0,0.00016767,2]
[366398068,1750230660156,-166.53998098,0.00016767,2]
[366398069,1750230660168,-935.79,0.00016767,2]
[366398070,1750230660179,-756.89,0.00016767,2]
[366398071,1750230660191,-490.0,0.00016767,2]
[366398072,1750230660202,-1296.85,0.00016767,2]
[366398073,1750230660214,-490.0,0.00016767,2]
[366398074,1750230660225,-490.0,0.00016767,2]
[366398075,1750230660237,-592.13,0.00016767,2]
[366398076,1750230660248,-552.51,0.00016767,2]
[366398077,1750230660259,-490.0,0.00016767,2]
[366398078,1750230660271,-490.0,0.00016767,2]
[366398079,1750230660283,-490.0,0.00016767,2]
[366398080,1750230660294,-500.75,0.00016767,2]
[366398081,1750230660305,-490.0,0.00016767,2]
[366398082,1750230660317,-1059.21,0.00016767,2]
[366398083,1750230660328,-490.0,0.00016767,2]
[366398084,1750230660339,-490.0,0.00016767,2]
[366398085,1750230660350,-1095.74,0.00016767,2]
[366398086,1750230660361,-606.02,0.00016767,2]
[366398087,1750230660375,-754.98,0.00016767,2]
[366398088,1750230660386,-490.0,0.00016767,2]
[366398089,1750230660398,-490.0,0.00016767,2]
[366398090,1750230660411,-520.3,0.00016767,2]
[366398091,1750230660422,-490.0,0.00016767,2]
[366398092,1750230660433,-580.19,0.00016767,2]
[366398093,1750230660445,-490.0,0.00016767,2]
[366398094,1750230660456,-490.0,0.00016767,2]
[366398095,1750230660467,-490.0,0.00016767,2]
[366398096,1750230660478,-490.0,0.00016767,2]
[366398097,1750230660489,-490.0,0.00016767,2]
[366398098,1750230660502,-490.0,0.00016767,2]
[366398099,1750230660513,-226.91293536,0.00016767,2]
[366398100,1750230660524,-535.7,0.00016767,2]
[366398101,1750230660535,-490.0,0.00016767,2]
[366398102,1750230660547,-1147.76,0.00016767,2]
[366398103,1750230661097,-518.23,0.00016767,2]
[366398104,1750230661129,-490.0,0.00016767,2]
[366398105,1750230661143,-659.86,0.00016767,2]
[366398106,1750230661153,-300.0,0.00016767,2]
[366398107,1750230661162,-326.42,0.00016767,2]
[366398108,1750230661172,-1263.87,0.00016767,2]
[366398109,1750230661182,-637.08,0.00016767,2]
[366398110,1750230661191,-571.5,0.00016767,2]
[366398111,1750230661202,-537.07,0.00016767,2]
[366398112,1750230661211,-1081.49,0.00016767,2]
[366398113,1750230661221,-1704.7,0.00016767,2]
[366398114,1750230661231,-490.0,0.00016767,2]
[366398115,1750230661240,-1075.53,0.00016767,2]
[366398116,1750230661249,-490.0,0.00016767,2]
[366398117,1750230661259,-490.0,0.00016767,2]
[366398118,1750230661268,-490.0,0.00016767,2]
[366398119,1750230661278,-825.79,0.00016767,2]
[366398120,1750230661288,-583.34,0.00016767,2]
[366398121,1750230661298,-490.0,0.00016767,2]
[366398122,1750230661308,-682.35,0.00016767,2]
[366398123,1750230661318,-490.0,0.00016767,2]
[366398124,1750230661327,-490.0,0.00016767,2]
[366398125,1750230661337,-1014.85,0.00016767,2]
[366398126,1750230661347,-714.83,0.00016767,2]
[366398127,1750230661357,-490.0,0.00016767,2]
[366398128,1750230661368,-698.38,0.00016767,2]
[366398129,1750230661379,-490.0,0.00016767,2]
[366398130,1750230661389,-1313.12,0.00016767,2]
[366398131,1750230661400,-490.0,0.00016767,2]
[366398132,1750230661411,-739.91,0.00016767,2]
[366398133,1750230661421,-652.96,0.00016767,2]
[366398134,1750230661438,-490.0,0.00016767,2]
[366398135,1750230661462,-490.0,0.00016767,2]
[366398136,1750230661486,-498.45,0.00016767,2]
[366398137,1750230661508,-490.0,0.00016767,2]
[366398138,1750230661530,-490.0,0.00016767,2]
[366398139,1750230661554,-853.48,0.00016767,2]
[366398140,1750230661577,-490.0,0.00016767,2]
[366398141,1750230661598,-1000.8,0.00016767,2]
[366398142,1750230661621,-621.55,0.00016767,2]
[366398143,1750230661644,-1452.18,0.00016767,2]
[366398144,1750230661668,-490.0,0.00016767,2]
[366398145,1750230661694,-838.71,0.00016767,2]
[366398146,1750230661722,-490.0,0.00016767,2]
[366398147,1750230661742,-490.0,0.00016767,2]
[366398148,1750230661753,-490.0,0.00016767,2]
[366398149,1750230661764,-1150.33,0.00016767,2]
[366398150,1750230661774,-626.02,0.00016767,2]
[366398151,1750230661783,-734.67,0.00016767,2]
[366398152,1750230661794,-490.0,0.00016767,2]
[366398153,1750230661804,-490.0,0.00016767,2]
[366398154,1750230661815,-490.0,0.00016767,2]
[366398155,1750230661825,-1357.82,0.00016767,2]
[366398156,1750230661835,-707.84,0.00016767,2]
[366398157,1750230661845,-944.66,0.00016767,2]
[366398158,1750230661855,-493.63,0.00016767,2]
[366398159,1750230661865,-1344.39,0.00016767,2]
[366398160,1750230661876,-490.0,0.00016767,2]
[366398161,1750230661887,-561.14,0.00016767,2]
[366398162,1750230661897,-490.0,0.00016767,2]
[366398163,1750230661907,-490.0,0.00016767,2]
[366398164,1750230661918,-490.0,0.00016767,2]
[366398165,1750230661928,-490.0,0.00016767,2]
[366398166,1750230661939,-490.0,0.00016767,2]
[366398167,1750230661948,-562.97,0.00016767,2]
[366398168,1750230661958,-490.0,0.00016767,2]
[366398169,1750230661968,-825.62,0.00016767,2]
[366398170,1750230661978,-490.0,0.00016767,2]
[366398171,1750230661988,-490.0,0.00016767,2]
[366398172,1750230661999,-490.0,0.00016767,2]
[366398173,1750230662009,-397.95112098,0.00016767,2]
[366398174,1750230662019,-618.79,0.00016767,2]
[366398175,1750230662029,-506.2,0.00016767,2]
[366398176,1750230662039,-490.0,0.00016767,2]
[366398177,1750230662049,-490.0,0.00016767,2]
[366398178,1750230662059,-825.67,0.00016767,2]
[366398179,1750230662070,-757.49,0.00016767,2]
[366398180,1750230662080,-490.0,0.00016767,2]
[366398181,1750230662090,-783.98,0.00016767,2]
[366398182,1750230662100,-490.0,0.00016767,2]
[366398183,1750230662112,-490.0,0.00016767,2]
[366398184,1750230662125,-490.0,0.00016767,2]
[366398185,1750230662136,-967.69,0.00016767,2]
[366398186,1750230662147,-620.36,0.00016767,2]
[366398187,1750230662157,-1204.24,0.00016767,2]
[366398188,1750230662167,-929.16,0.00016767,2]
[366398189,1750230662177,-490.0,0.00016767,2]
[366398190,1750230662191,-614.64,0.00016767,2]
[366398191,1750230662201,-618.17536299,0.00016767,2]
[366398192,1750230662211,-490.0,0.00016767,2]
[366398193,1750230662220,-543.59,0.00016767,2]
[366398194,1750230662231,-490.0,0.00016767,2]
[366398195,1750230662240,-490.0,0.00016767,2]
[366398196,1750230662250,-490.0,0.00016767,2]
[366398197,1750230662260,-645.48,0.00016767,2]
[366398198,1750230662270,-1486.82,0.00016767,2]
[366398199,1750230662280,-734.83,0.00016767,2]
[366398200,1750230662290,-911.53,0.00016767,2]
[366398201,1750230662300,-727.86,0.00016767,2]
[366398202,1750230662310,-490.0,0.00016767,2]
[366398203,1750230662320,-490.0,0.00016767,2]
[366398204,1750230662330,-490.0,0.00016767,2]
[366398205,1750230662340,-490.0,0.00016767,2]
[366398206,1750230662350,-490.0,0.00016767,2]
[366398207,1750230662361,-490.0,0.00016767,2]
[366398208,1750230662373,-201.89493759,0.00016767,2]
[366398209,1750230662383,-534.16,0.00016767,2]
[366398210,1750230662393,-490.0,0.00016767,2]
[366398211,1750230662403,-490.0,0.00016767,2]
[366398212,1750230662412,-1751.6,0.00016767,2]
[366398213,1750230662422,-958.66,0.00016767,2]
[366398214,1750230662432,-490.0,0.00016767,2]
[366398215,1750230662441,-490.0,0.00016767,2]
[366398216,1750230662451,-490.0,0.00016767,2]
[366398217,1750230662461,-712.01,0.00016767,2]
[366398218,1750230662471,-496.41,0.00016767,2]
[366398219,1750230662480,-490.0,0.00016767,2]
[366398220,1750230662490,-1124.25,0.00016767,2]
[366398221,1750230662500,-490.0,0.00016767,2]
[366398222,1750230662509,-1143.72,0.00016767,2]
[366398223,1750230662518,-732.44,0.00016767,2]
[366398224,1750230662527,-906.12,0.00016767,2]
[366398225,1750230662537,-494.17816979,0.00016767,2]
[366398226,1750230662547,-737.19,0.00016767,2]
[366398227,1750230662557,-490.0,0.00016767,2]
[366398228,1750230662567,-555.71,0.00016767,2]
[366398229,1750230662576,-490.0,0.00016767,2]
[366398230,1750230662586,-1187.52,0.00016767,2]
[366398231,1750230662597,-490.0,0.00016767,2]
[366398232,1750230662607,-490.0,0.00016767,2]
[366398233,1750230662617,-707.3,0.00016767,2]
[366398234,1750230662628,-490.0,0.00016767,2]
[366398235,1750230662638,-490.0,0.00016767,2]
[366398236,1750230662648,-1541.15,0.00016767,2]
[366398237,1750230662662,-674.55,0.00016767,2]
[366398238,1750230662672,-490.0,0.00016767,2]
[366398239,1750230662682,-490.0,0.00016767,2]
[366398240,1750230662693,-226.07469537,0.00016767,2]
[366398241,1750230662703,-490.0,0.00016767,2]
[366398242,1750230662714,-555.87,0.00016767,2]
[366398243,1750230662724,-490.0,0.00016767,2]
[366398244,1750230662734,-825.95,0.00016767,2]
[366398245,1750230662744,-1926.35,0.00016767,2]
[366398246,1750230662754,-556.02,0.00016767,2]
[366398247,1750230662763,-621.36,0.00016767,2]
[366398248,1750230662773,-490.0,0.00016767,2]
[366398249,1750230662783,-986.8,0.00016767,2]
[366398250,1750230662793,-490.0,0.00016767,2]
[366398251,1750230662803,-490.0,0.00016767,2]
[366398252,1750230662813,-2000.01,0.00016767,2]
[366398253,1750230662823,-725.73,0.00016767,2]
[366398254,1750230662833,-490.0,0.00016767,2]
[366398255,1750230662843,-1175.82,0.00016767,2]
[366398256,1750230662852,-490.0,0.00016767,2]
[366398257,1750230662862,-490.0,0.00016767,2]
[366398258,1750230662872,-842.31,0.00016767,2]
[366398259,1750230662882,-490.0,0.00016767,2]
[366398260,1750230662892,-2722.99,0.00016767,2]
[366398261,1750230662902,-490.0,0.00016767,2]
[366398262,1750230662912,-490.0,0.00016767,2]
[366398263,1750230662921,-848.93,0.00016767,2]
[366398264,1750230662931,-512.35,0.00016767,2]
[366398265,1750230662941,-490.0,0.00016767,2]
[366398266,1750230662951,-948.99,0.00016767,2]
[366398267,1750230662962,-490.0,0.00016767,2]
[366398268,1750230662973,-1471.12,0.00016767,2]
[366398269,1750230662983,-490.0,0.00016767,2]
[366398270,1750230662992,-490.0,0.00016767,2]
[366398271,1750230663002,-490.98,0.00016767,2]
[366398272,1750230663013,-490.0,0.00016767,2]
[366398273,1750230663023,-490.0,0.00016767,2]
[366398274,1750230663034,-490.0,0.00016767,2]
[366398275,1750230663045,-490.0,0.00016767,2]
[366398276,1750230663055,-490.0,0.00016767,2]
[366398277,1750230663066,-490.0,0.00016767,2]
[366398278,1750230663076,-490.0,0.00016767,2]
[366398279,1750230663087,-660.06,0.00016767,2]